Cogmind - Beta 11 @@@ ROGUE MODE // 2022.04.21 @ 21:01:33 Player: aperiodic Result: Destroyed by G-34 Mercenary with Small Laser Performance ------------- Evolutions (0) 0 Regions Visited (2) 400 Robots Destroyed (30) 150 Value Destroyed (592) 592 Prototype IDs (3) 60 Alien Tech Used (0) 0 Bonus (0) 0 TOTAL SCORE: 1202 Bonus ------- None Cogmind --------- Core Integrity 0/250 Matter 293/300 Energy 125/125 System Corruption 1% Temperature Warm (135) Movement Treading (160) Location -10/Mines Parts ------- > --- POWER (1) -------- Light Ion Engine > --- PROPULSION (2) --- Light Treads Light Treads > --- UTILITY (2) ------ Large Storage Unit > --- WEAPON (2) ------- Beam Cannon Assault Rifle > --- INVENTORY (15) --- Light Treads Huge Storage Unit Weapon Shielding Hacking Suite Medium Laser Small Laser Assault Rifle Assault Rifle Grenade Launcher Datajack Mining Laser Heavy Hammer Heavy Hammer Mining Claw Peak State ------------ > --- POWER ------------ Ion Engine > --- PROPULSION ------- Wheel Wheel > --- UTILITY ---------- Large Storage Unit Seismic Detector > --- WEAPON ----------- Assault Rifle Heavy Hammer > --- INVENTORY -------- Light Ion Engine Light Treads Light Treads Light Treads Compact Wheel Weapon Shielding Medium Laser Small Laser Grenade Launcher Mining Laser Heavy Hammer [Rating: 9] Favorites ----------- Power Ion Engine Engine Ion Engine Propulsion Wheel Treads Light Treads Wheel Wheel Utility Seismic Detector Device Seismic Detector Storage Large Storage Unit Processor Targeting Computer Weapon Assault Rifle Energy Gun Medium Laser Energy Cannon Beam Cannon Ballistic Gun Assault Rifle Launcher Grenade Launcher Special Weapon Mining Laser Impact Weapon Heavy Hammer Slashing Weapon Mining Claw Build | -11 -10 -10 ------- Run | Scr Mat Min Slots Evolved . | . . . Power . | . . . Propulsion . | . . . Utility . | . . . Weapon . | . . . Parts Attached 31 | 8 23 . Power 2 | 1 1 . Engine 2 | 1 1 . Core . | . . . Reactor . | . . . Propulsion 12 | 3 9 . Treads 4 | . 4 . Leg . | . . . Wheel 8 | 3 5 . Hover . | . . . Flight . | . . . Utility 5 | 2 3 . Device 2 | 1 1 . Storage 2 | 1 1 . Processor 1 | . 1 . Hackware . | . . . Protection . | . . . Artifact . | . . . Weapon 12 | 2 10 . Energy Gun 2 | 1 1 . Energy Cannon 1 | . 1 . Ballistic Gun 4 | 1 3 . Ballistic Cannon . | . . . Launcher 1 | . 1 . Special Weapon 1 | . 1 . Impact Weapon 2 | . 2 . Slashing Weapon 1 | . 1 . Piercing Weapon . | . . . Special Melee Weapon . | . . . Unidentified Prototypes . | . . . Parts Lost 5 | . 4 1 Power 1 | . 1 . Propulsion 3 | . 3 . Utility 1 | . . 1 Weapon . | . . . Highest Loss Streak 3 | . 3 1 To Critical Strikes . | . . . Average Slot Usage (%) 98 | . 98 100 Engine 12 | . 12 14 Treads 10 | . 9 28 Wheel 16 | . 18 . Device 13 | . 13 14 Storage 14 | . 14 14 Energy Gun 3 | . 3 . Energy Cannon 4 | . 3 14 Ballistic Gun 11 | . 11 14 Impact Weapon 5 | . 6 . Slashing Weapon 3 | . 3 . Naked Turns . | . . . Heaviest Build 31 | 15 31 29 Greatest Support 40 | 26 40 40 Greatest Overweight (x) 2 | 2 1 . Average Overweight (x) . | . . . Largest Inventory Capacity 15 | 8 15 15 Average Capacity 14 | 7 14 15 Most Carried 15 | 6 15 14 Average Carried 11 | 3 11 14 Final Capacity 15 | 8 15 15 Final Carried 14 | 6 14 14 Class Distribution -------------------- 100% | Mutant Dominant Class ---------------- Mutant | -10/Materials Mutant | -10/Mines Resources | -11 -10 -10 ----------- Run | Scr Mat Min Matter Collected 623 | 301 261 61 Remotely . | . . . Salvage Created 844 | 151 609 84 Parts 40 | 12 25 3 Haulers Intercepted 2 | . 2 . Recyclers Shooed 1 | 1 . . Parts Field Recycled . | . . . Retrieved Matter . | . . . Parts Self-Destructed . | . . . Prevented . | . . . Kills | -11 -10 -10 ------- Run | Scr Mat Min Combat Hostiles Destroyed 15 | . 13 2 Melee 7 | . 7 . Guns 1 | . . 1 Cannons 2 | . 1 1 AOE 3 | . 3 . Classes Destroyed 8 | 2 6 . Worker 1 | . 1 . Tunneler 4 | 4 . . Hauler 2 | . 2 . Recycler 2 | 1 1 . Operator 3 | . 3 . Watcher 3 | . 3 . Swarmer 3 | . 3 . Grunt 12 | . 10 2 Best Kill Streak 5 | 4 5 2 Combat Bots Only 5 | . 5 2 Max Kills in Single Turn 2 | 1 2 1 Gunslinging . | . . . Exploded 2 | . 2 . Melee 1 | . 1 . Uniques/NPCs Destroyed . | . . . Combat | -11 -10 -10 -------- Run | Scr Mat Min Damage Taken 823 | . 549 274 Core 251 | . 163 88 Absorbed by Shields . | . . . Core Remaining (%) 100 | 100 . . Volleys Fired 33 | 7 13 13 Largest 2 | 2 2 2 Hottest 100 | 70 100 80 Shots Fired 58 | 14 19 25 Gun 35 | 14 8 13 Cannon 16 | . 4 12 Launcher 3 | . 3 . Special 4 | . 4 . Kinetic 26 | 7 6 13 Thermal 29 | 7 10 12 Explosive 3 | . 3 . Electromagnetic . | . . . Robot Hit Streak 10 | 5 10 5 Robot Miss Streak 2 | 1 1 2 Penetration Max . | . . . Secondary Targets . | . . . Shots Hit Robots 65 | 9 41 15 Core Hits 22 | 6 11 5 Critical Kills . | . . . Critical Parts Destroyed 5 | . 5 . Critical Strikes 7 | 2 5 . Burn 2 | 2 . . Smash 5 | . 5 . Melee Attacks 45 | . 45 . Impact 41 | . 41 . Slashing 4 | . 4 . Piercing . | . . . Sneak Attacks 6 | . 6 . Combat Hostiles . | . . . Follow-up Attacks 2 | . 2 . Damage Inflicted 1961 | 109 1623 229 Guns 257 | 109 77 71 Cannons 213 | . 55 158 Explosions 179 | . 179 . Melee 1305 | . 1305 . Ramming 7 | . 7 . Kinetic 170 | 47 52 71 Thermal 300 | 62 80 158 Explosive 179 | . 179 . Electromagnetic . | . . . Impact 1245 | . 1245 . Slashing 60 | . 60 . Piercing . | . . . Highest Corruption 1 | . 1 1 Average Corruption 1 | . 1 1 Corruption Purged . | . . . Corruption Blocked . | . . . Effects 8 | . 6 2 Matter Fused 3 | . 3 . Heat Flow Errors 2 | . 1 1 Data Loss (minor) 2 | . 2 . Weapon Failures 1 | . . 1 Overload Shots . | . . . Overflow Damage 555 | . 555 . Projectiles . | . . . Explosions . | . . . Melee 555 | . 555 . Knockbacks 3 | . 3 . Impact 3 | . 3 . Kinetic . | . . . Secondary . | . . . Self-Inflicted Damage 3 | . 3 . Shots . | . . . Rammed 1 | . 1 . Targets Rammed 1 | . 1 . Kicked . | . . . Crushed . | . . . Highest Temperature 251 | 54 186 251 Average Temperature 65 | 25 30 107 Received Heat Transfer 324 | . 120 204 Effects 2 | . . 2 Energy Bleed 2 | . . 2 Siege Activations . | . . . Robots Corrupted . | . . . Combat Hostiles . | . . . Parts Fried 11 | . 11 . Impact Corruptions 19 | . 19 . Robots Melted . | . . . Combat Hostiles . | . . . Parts Melted 3 | 2 1 . Heat Transferred 851 | 333 185 333 Parts Sabotaged . | . . . Parts Stolen . | . . . Parts Stripped . | . . . Power Chain Reactions . | . . . Missiles Intercepted . | . . . Alert | -11 -10 -10 ------- Run | Scr Mat Min Peak Influence 264 | 25 264 108 Initial 58 | . 16 58 Average 107 | 10 116 99 Maximum Alert Level 1 | . 1 . Low Security (%) 84 | 100 81 100 Level 1 15 | . 18 . Level 2 . | . . . Level 3 . | . . . Level 4 . | . . . Level 5 . | . . . High Security . | . . . Max Security . | . . . Squads Dispatched 5 | . 5 . Investigation 1 | . 1 . Extermination . | . . . Reinforcement 4 | . 4 . Assault . | . . . Garrison . | . . . Intercept . | . . . Searches Triggered . | . . . Construction Impeded . | . . . Haulers Reinforced . | . . . Active Scanning Responses . | . . . Cargo Convoy Interrupts . | . . . Stealth | -11 -10 -10 --------- Run | Scr Mat Min Distress Signals 2 | . 2 . Communications Jammed . | . . . Distress Signals . | . . . Times Spotted 31 | . 27 4 Peak Tracking Total 4 | . 4 2 Tactical Retreats 1 | . 1 . Traps | -11 -10 -10 ------- Run | Scr Mat Min Traps Triggered 5 | . 5 . Indirectly . | . . . Trap Hack Attempts . | . . . Triggered . | . . . Disarmed . | . . . Reprogrammed . | . . . Reused . | . . . Traps Extracted . | . . . Installed . | . . . Triggered . | . . . Machines | -11 -10 -10 ---------- Run | Scr Mat Min Machines Disabled . | . . . Max in Single Turn . | . . . Machines Sabotaged . | . . . Garrisons Compromised . | . . . Overloaded Fab Kills . | . . . Hacking | -11 -10 -10 --------- Run | Scr Mat Min Machines Accessed 4 | . 4 . Terminals 3 | . 3 . Fabricators . | . . . Repair Stations . | . . . Recycling Units 1 | . 1 . Scanalyzers . | . . . Garrison Access . | . . . Total Hacks 9 | . 9 . Successful 6 | . 6 . Failed 3 | . 3 . Catastrophic . | . . . Database Lockouts . | . . . Manual 6 | . 6 . Terminals 8 | . 8 . Fabricators . | . . . Repair Stations . | . . . Recycling Units 1 | . 1 . Scanalyzers . | . . . Garrison Access . | . . . Terminal Hacks 5 | . 5 . Record 1 | . 1 . Robot Analysis 1 | . 1 . Prototype ID Bank 2 | . 2 . Recall Investigation 1 | . 1 . Fabricator Hacks . | . . . Repair Station Hacks . | . . . Recycling Unit Hacks . | . . . Scanalyzer . | . . . Garrison Access Hacks . | . . . Unauthorized Hacks 1 | . 1 . Terminals . | . . . Fabricators . | . . . Repair Stations . | . . . Recycling Units 1 | . 1 . Tunnel 1 | . 1 . Scanalyzers . | . . . Garrison Access . | . . . Data Cores Recovered . | . . . Used . | . . . Hacking Detections 3 | . 3 . Full Trace Events . | . . . Feedback Events . | . . . Feedback Blocked . | . . . Robot Schematics Acquired . | . . . Robots Built . | . . . Authchips . | . . . Time . | . . . Total Robot Build Rating . | . . . Part Schematics Acquired . | . . . Parts Built . | . . . Authchips . | . . . Time . | . . . Total Part Build Rating . | . . . Parts Repaired . | . . . Time . | . . . Parts Recycled . | . . . Recycled Matter . | . . . Retrieved Matter . | . . . Retrieved Components . | . . . Parts Scanalyzed . | . . . Part Schematics Acquired . | . . . Parts Damaged . | . . . Bothacking | -11 -10 -10 ------------ Run | Scr Mat Min Used RIF Installer . | . . . Robots Hacked . | . . . Non-combat . | . . . Combat . | . . . Robot Hacks Applied . | . . . Relay Couplers Released . | . . . Fabnet Peak Effective % . | . . . Robots Rewired . | . . . Allies Hacked . | . . . Hacks Repelled . | . . . Allies | -11 -10 -10 -------- Run | Scr Mat Min Total Allies . | . . . Largest Group . | . . . Highest-Rated Group . | . . . Highest-Rated Ally . | . . . Total Orders . | . . . Ally Attacks . | . . . Total Damage . | . . . Kills . | . . . Allies Corrupted . | . . . Allies Melted . | . . . Intel | -11 -10 -10 ------- Run | Scr Mat Min Robot Analysis Total 1 | . 1 . Derelict Logs Recovered . | . . . Drone Launches . | . . . Drone Recoveries . | . . . Exploration | -11 -10 -10 ------------- Run | Scr Mat Min Turns Passed 1572 | 118 1351 103 Spaces Moved 898 | 89 769 40 Core 6 | 6 . . Treads 243 | . 203 40 Legs . | . . . Wheels 649 | 83 566 . Hover . | . . . Flight . | . . . Fastest Speed 50 | 50 80 160 Average Speed 115 | 85 117 160 Slowest Speed 160 | 150 160 160 Overloaded Moves . | . . . Propulsion Burnouts . | . . . Robots Hopped . | . . . Cave-ins Triggered . | . . . Exploration Rate (%) 35 | 4 90 11 Regions Visited 2 Branch Regions 1 Pre-discovered Areas 1 | . 1 . Known Exits Taken . | . . . Unknown Exits Taken 2 | 1 1 . Scrap Searched . | . . . Spaces Dug 5 | . 5 . Terrain Destroyed 28 | . 28 . Melee 2 | . 2 . Projectile 4 | . 4 . AOE 22 | . 22 . Terrain Rammed . | . . . Walls Destroyed . | . . . Machines Disabled . | . . . Actions | -11 -10 -10 --------- Run | Scr Mat Min Total 1275 | 112 1109 54 Wait 252 | 4 247 1 Move 896 | 88 768 40 Hop . | . . . Pick Up 17 | 5 12 . Fast Attach 13 | 7 6 . Attach 4 | . 4 . Detach . | . . . Swap 14 | 1 13 . Drop 3 | . 3 . Fire 33 | 7 13 13 Melee 42 | . 42 . Ram 1 | . 1 . Kick . | . . . Crush . | . . . Escape Stasis . | . . . Rewire . | . . . Trap . | . . . Miscellaneous . | . . . Route ------- -11/Scrapyard -10/Materials (discovered 4 exits: [*Mat x3] / [*Min]) -10/Mines History --------- Turn | Location | Event 14 | -11/Scrapyard | Discovered new exit (range 16) 119 | -11/Scrapyard | Entered Materials 301 | -10/Materials | Build established: Mutant 534 | -10/Materials | Discovered new exit (range 4) 696 | -10/Materials | Discovered new exit (range 5) 1109 | -10/Materials | Core integrity fell below 50% 1143 | -10/Materials | Lost 3 parts (1p2n) 1272 | -10/Materials | Discovered new exit (range 7) 1297 | -10/Materials | Discovered new exit (range 16) 1470 | -10/Materials | Entered Mines 1487 | -10/Mines | Core integrity fell below 20% 1573 | -10/Mines | Destroyed by G-34 Mercenary with Small Laser Last Messages --------------- 01239_ Acquired Huge Storage Unit. 01254_ Acquired 15 matter. 01272_ EXIT=FOUND 01331_ Acquired Datajack. 01426_ T-07 Excavator is excavating. 01454_ System corrupted: Matter fused (-10). LOCATION=UNKNOWN GOAL=ESCAPE 01470_ System corrupted: Beam Cannon failed to cycle. 01474_ Seismic Survey Station disabled. 01476_ G-34 Mercenary destroyed. 01480_ Critical hit (Burn: +37). 01494_ G-47 Trooper destroyed. 01496_ Overheating: Energy bleed (-22). 01497_ Acquired 40 matter. 01499_ Overheating: Energy bleed (-26). 01499_ Acquired 21 matter. 01523_ System corrupted: Heat flow error (+212). 01565_ Critical hit (Burn: +37). 01573_ Seismic Detector destroyed. Map ----- +----------------------------------------------------+ | ??????????????????# #???????????? | | ??????????????????# #???????????? | | ??????????????????# #######?????? | | ??????????????????# #?????? | | ??????????????????####### #?????? | | ????????????????????????# #?????? | | ????????????????????????# #?????? | | ????????????????????????# #?????? | | ????????????????????????# #?????? | | ????????????????????????# #?????? | | ????????????????????????# #?????? | | ????????????????????????# #?????? | | ????????????????????????# #?????? | | ????????????????????????# #?????? | | ????????????????????????# #?????? | | ????????????????????????# #?????? | | ????????????????????????# #?????? | | ????????????????????????# #?????? | | ????????????????????????# #?????? | | ????????????????????????# #?????? | | ????????????????????????# #?????? | | ????????????????????????# #?????? | | ????????????????????????# ###???? | | ???????????????????????## ##??? | | ??????????????????????## #??? | | ??????????????????????# @ #??? | | ??????????????????????# #??? | | ??????????????????????## ##??? | | ??????????????????????? ##???? | | ??????????????????????## ##????? | | ???????????????????????# #?????? | | ???????????????????????# #?????? | | ???????????????????????# #?????? | | ??????????????????????? #?????? | | ??????????????????????? ??????? | | ??????????????????????? ??????? | | ???????????????????????gg ??????? | | ??????????????????????? ??????? | | ?????????????????????? ??????? | | ?????????????????????? ??????? | | ??????????????????????? ??????? | | ????????????????????????????????? | | ????????????????????????????????? | | ????????????????????????????????? | | ????????????????????????????????? | | ????????????????????????????????? | | ????????????????????????????????? | | ????????????????????????????????? | | ????????????????????????????????? | | ????????????????????????????????? | +----------------------------------------------------+ Best States ------------- Heat Dissipation 25 Energy Generation 10 Energy Capacity 250 Matter Stores 300 Matter Capacity 300 Sight Range 16 Terrain Scan Density 10 Evasion (%) 44 Targeting Accuracy 5 Recoil Reduction 2 Item Schematics ----------------- None Robot Schematics ------------------ None Fabricated ------------ Nothing Alien Tech Used ----------------- None Achievements -------------- None Challenges ------------ None Game ------ Seed ShadeShadeScreen Manual? 0 Play Time 00:12:28 Cumulative 521.7 hours Start 2022.04.21 @ 20:49:36 End 2022.04.21 @ 21:01:33 Sessions 1 Manual Loads 0 Difficulty Rogue Special Mode None Game No. 170 Rogue 166 Adventurer 4 Explorer 0 Win Type - Total 13 Types 6/2/3/0/0/0/1/1/0 Lore% 82 Gallery% 86 Achievement% 73 Wizard Run 0 Options --------- ASCII 1 Keyboard 0 Movement Arrows Keybinds 0 Fullscreen 1 Font 18/SmallcapsGlow Map View 76x50 Tactical HUD 1 Map Filters NONE Filters NONE Steam 1 RUN: 6a55108f-5a7d-43be-ad29-8bed6755330b